[Event "Titled Tuesday Blitz May 10 Early 2022"]
[White "Ceres, Dragos"]
[Black "Ferreira, Vitor Hugo Vieira"]
[WhiteFideId "13905864"]
[BlackFideId "2119765"]
[WhiteElo "2150"]
[BlackElo "2165"]
[Result "0-1"]
[Round "08"]
[TimeControl "180+1"]
[Date "2022.05.11"]
[WhiteClock "0:00:21"]
[BlackClock "0:00:14"]

1. e4 {[%clk 0:02:58]}  c5 {[%clk 0:02:58]} 2. Nf3 {[%clk 0:02:56]}  d6 {[%clk 0:02:58]} 3. Bb5+ {[%clk 0:02:55]}  Bd7 {[%clk 0:02:56]} 4. Bd3 {[%clk 0:02:52]}  Nc6 {[%clk 0:02:55]} 5. h3 {[%clk 0:02:48]}  g6 {[%clk 0:02:55]} 6. c3 {[%clk 0:02:48]}  Bg7 {[%clk 0:02:55]} 7. O-O {[%clk 0:02:48]}  Nf6 {[%clk 0:02:55]} 8. Re1 {[%clk 0:02:42]}  O-O {[%clk 0:02:55]} 9. Bf1 {[%clk 0:02:40]}  Rc8 {[%clk 0:02:53]} 10. d4 {[%clk 0:02:35]}  e5 {[%clk 0:02:52]} 11. dxc5 {[%clk 0:02:31]}  dxc5 {[%clk 0:02:51]} 12. Na3 {[%clk 0:02:32]}  Be6 {[%clk 0:02:29]} 13. Ng5 {[%clk 0:02:26]}  Qe7 {[%clk 0:02:26]} 14. Nxe6 {[%clk 0:02:25]}  Qxe6 {[%clk 0:02:27]} 15. Nc4 {[%clk 0:02:14]}  Rfd8 {[%clk 0:02:26]} 16. Qc2 {[%clk 0:02:11]}  b5 {[%clk 0:02:25]} 17. Ne3 {[%clk 0:02:08]}  c4 {[%clk 0:02:22]} 18. a4 {[%clk 0:02:06]}  a6 {[%clk 0:02:22]} 19. axb5 {[%clk 0:02:05]}  axb5 {[%clk 0:02:23]} 20. Qb1 {[%clk 0:01:55]}  Nd4 {[%clk 0:02:10]} 21. Nd5 {[%clk 0:01:21]}  Nb3 {[%clk 0:02:01]} 22. Nxf6+ {[%clk 0:01:20]}  Qxf6 {[%clk 0:01:50]} 23. Ra7 {[%clk 0:01:21]}  Nd2 {[%clk 0:01:43]} 24. Qc2 {[%clk 0:01:17]}  Nxf1 {[%clk 0:01:33]} 25. Rxf1 {[%clk 0:01:18]}  Rd3 {[%clk 0:01:30]} 26. Be3 {[%clk 0:01:17]}  Qh4 {[%clk 0:01:21]} 27. Rfa1 {[%clk 0:01:06]}  Qxe4 {[%clk 0:01:19]} 28. Qe2 {[%clk 0:01:02]}  Rcd8 {[%clk 0:01:10]} 29. Rc7 {[%clk 0:00:55]}  Bh6 {[%clk 0:01:07]} 30. Raa7 {[%clk 0:00:33]}  Rxe3 {[%clk 0:00:25]} 31. fxe3 {[%clk 0:00:28]}  Bxe3+ {[%clk 0:00:25]} 32. Kh1 {[%clk 0:00:20]}  Qb1+ {[%clk 0:00:23]} 33. Kh2 {[%clk 0:00:20]}  Bf4+ {[%clk 0:00:20]} 34. g3 {[%clk 0:00:20]}  Rd2 {[%clk 0:00:19]} 35. Qxd2 {[%clk 0:00:20]}  Bxd2 {[%clk 0:00:19]} 36. Rxf7 {[%clk 0:00:20]}  Bh6 {[%clk 0:00:18]} 37. Rab7 {[%clk 0:00:09]}  Qxb2+ {[%clk 0:00:18]} 38. Kh1 {[%clk 0:00:10]}  Qb1+ {[%clk 0:00:18]} 39. Kg2 {[%clk 0:00:10]}  Qe4+ {[%clk 0:00:17]} 40. Kh2 {[%clk 0:00:10]}  Qe2+ {[%clk 0:00:17]} 41. Kh1 {[%clk 0:00:11]}  Qe1+ {[%clk 0:00:13]} 42. Kh2 {[%clk 0:00:11]}  Qxc3 {[%clk 0:00:12]} 43. Rxh7 {[%clk 0:00:08]}  Qd2+ {[%clk 0:00:11]} 44. Kh1 {[%clk 0:00:08]}  Qd5+ {[%clk 0:00:06]} 45. Kh2 {[%clk 0:00:08]}  Bf8 {[%clk 0:00:05]} 46. Rhd7 {[%clk 0:00:06]}  Qe4 {[%clk 0:00:04]} 47. Rb8 {[%clk 0:00:04]}  Qe2+ {[%clk 0:00:03]} 48. Kh1 {[%clk 0:00:04]}  Qf1+ {[%clk 0:00:03]} 49. Kh2 {[%clk 0:00:04]}  Qf2+ {[%clk 0:00:03]} 50. Kh1 {[%clk 0:00:05]}  Qf5 {[%clk 0:00:03]} 51. Rdd8 {[%clk 0:00:04]}  Qxh3+ {[%clk 0:00:02]} 52. Kg1 {[%clk 0:00:04]}  Qxg3+ {[%clk 0:00:03]} 53. Kf1 {[%clk 0:00:05]}  Qf4+ {[%clk 0:00:03]} 54. Ke2 {[%clk 0:00:06]}  e4 {[%clk 0:00:04]} 55. Kd1 {[%clk 0:00:06]}  Qf3+ {[%clk 0:00:04]} 56. Kd2 {[%clk 0:00:06]}  e3+ {[%clk 0:00:05]} 57. Ke1 {[%clk 0:00:06]}  e2 {[%clk 0:00:05]} 58. Rxf8+ {[%clk 0:00:06]}  Qxf8 {[%clk 0:00:05]} 59. Rxf8+ {[%clk 0:00:06]}  Kxf8 {[%clk 0:00:06]} 60. Kxe2 {[%clk 0:00:07]}  Ke7 {[%clk 0:00:07]} 61. Kd2 {[%clk 0:00:08]}  Kd7 {[%clk 0:00:08]} 62. Kc3 {[%clk 0:00:09]}  Kc6 {[%clk 0:00:09]} 63. Kb4 {[%clk 0:00:10]}  Kb6 {[%clk 0:00:09]} 64. Kc3 {[%clk 0:00:11]}  Kc5 {[%clk 0:00:10]} 65. Kd2 {[%clk 0:00:12]}  b4 {[%clk 0:00:11]} 66. Ke3 {[%clk 0:00:13]}  c3 {[%clk 0:00:12]} 67. Kf4 {[%clk 0:00:14]}  Kc4 {[%clk 0:00:13]} 68. Kg5 {[%clk 0:00:14]}  c2 {[%clk 0:00:13]} 69. Kxg6 {[%clk 0:00:15]}  b3 {[%clk 0:00:14]} 70. Kf5 {[%clk 0:00:16]}  b2 {[%clk 0:00:15]} 71. Ke5 {[%clk 0:00:17]}  b1=Q {[%clk 0:00:16]} 72. Kd6 {[%clk 0:00:18]}  c1=Q {[%clk 0:00:17]} 73. Kc6 {[%clk 0:00:19]}  Qb5+ {[%clk 0:00:17]} 74. Kc7 {[%clk 0:00:20]}  Qf4+ {[%clk 0:00:16]} 75. Kd8 {[%clk 0:00:20]}  Qf8+ {[%clk 0:00:15]} 76. Kc7 {[%clk 0:00:19]}  Qbb8+ {[%clk 0:00:14]} 77. Kc6 {[%clk 0:00:20]}  Qbc8+ {[%clk 0:00:14]} 78. Kb6 {[%clk 0:00:20]}  Qd6+ {[%clk 0:00:15]} 79. Ka5 {[%clk 0:00:21]}  Qda6# {[%clk 0:00:14]} 0-1


[Site "https://www.chess.com"]

[Event "Titled Tuesday Blitz May 10 Early 2022"]
[White "Chernomordik, Pavel"]
[Black "Petrova, Irina"]
[WhiteFideId "2804530"]
[BlackFideId "14124122"]
[WhiteElo "2220"]
[BlackElo "1993"]
[Result "0-1"]
[Round "08"]
[TimeControl "180+1"]
[Date "2022.05.11"]
[WhiteClock "0:00:55"]
[BlackClock "0:00:47"]

1. e4 {[%clk 0:03:00]}  c5 {[%clk 0:03:00]} 2. Nc3 {[%clk 0:03:00]}  Nc6 {[%clk 0:02:59]} 3. Bb5 {[%clk 0:02:59]}  Nd4 {[%clk 0:02:58]} 4. Bc4 {[%clk 0:02:59]}  e6 {[%clk 0:02:56]} 5. Nge2 {[%clk 0:02:58]}  a6 {[%clk 0:02:44]} 6. Nxd4 {[%clk 0:02:50]}  cxd4 {[%clk 0:02:45]} 7. Ne2 {[%clk 0:02:50]}  b5 {[%clk 0:02:44]} 8. Bb3 {[%clk 0:02:50]}  Qb6 {[%clk 0:02:39]} 9. d3 {[%clk 0:02:49]}  Bb4+ {[%clk 0:02:37]} 10. Bd2 {[%clk 0:02:49]}  Be7 {[%clk 0:02:29]} 11. O-O {[%clk 0:02:47]}  Bb7 {[%clk 0:02:25]} 12. a4 {[%clk 0:02:43]}  Nf6 {[%clk 0:02:24]} 13. h3 {[%clk 0:02:41]}  O-O {[%clk 0:02:23]} 14. f4 {[%clk 0:02:38]}  d5 {[%clk 0:02:08]} 15. e5 {[%clk 0:02:33]}  Nd7 {[%clk 0:02:08]} 16. Qe1 {[%clk 0:02:32]}  Nc5 {[%clk 0:02:06]} 17. Ba5 {[%clk 0:02:29]}  Qc6 {[%clk 0:02:02]} 18. Nxd4 {[%clk 0:02:27]}  Qd7 {[%clk 0:01:57]} 19. f5 {[%clk 0:02:14]}  Nxb3 {[%clk 0:01:55]} 20. cxb3 {[%clk 0:02:10]}  Bc5 {[%clk 0:01:51]} 21. Rf4 {[%clk 0:02:09]}  exf5 {[%clk 0:01:43]} 22. Bb4 {[%clk 0:02:07]}  Bxd4+ {[%clk 0:01:38]} 23. Rxd4 {[%clk 0:02:06]}  Rfe8 {[%clk 0:01:35]} 24. Qg3 {[%clk 0:01:58]}  Re6 {[%clk 0:01:28]} 25. Bc3 {[%clk 0:01:49]}  Rae8 {[%clk 0:01:25]} 26. axb5 {[%clk 0:01:43]}  axb5 {[%clk 0:01:23]} 27. Rf4 {[%clk 0:01:39]}  Rg6 {[%clk 0:01:17]} 28. Qf2 {[%clk 0:01:32]}  d4 {[%clk 0:01:15]} 29. Qxd4 {[%clk 0:01:26]}  Rxg2+ {[%clk 0:01:14]} 30. Kf1 {[%clk 0:01:25]}  Qc6 {[%clk 0:01:06]} 31. Rxf5 {[%clk 0:01:09]}  Rh2 {[%clk 0:00:54]} 32. e6 {[%clk 0:00:56]}  Qg2+ {[%clk 0:00:48]} 33. Ke1 {[%clk 0:00:55]}  Qe2# {[%clk 0:00:47]} 0-1


[Site "https://www.chess.com"]

[Event "Titled Tuesday Blitz May 10 Early 2022"]
[White "Daneshvar, Bardiya"]
[Black "Nenezic, Marko"]
[WhiteFideId "12576468"]
[BlackFideId "912123"]
[WhiteElo "2330"]
[BlackElo "2457"]
[Result "1-0"]
[Round "08"]
[TimeControl "180+1"]
[Date "2022.05.10"]
[WhiteClock "0:00:09"]
[BlackClock "0:00:33"]

1. d4 {[%clk 0:03:00]}  Nf6 {[%clk 0:02:59]} 2. c4 {[%clk 0:03:00]}  g6 {[%clk 0:03:00]} 3. Nc3 {[%clk 0:03:00]}  Bg7 {[%clk 0:03:01]} 4. e4 {[%clk 0:03:00]}  d6 {[%clk 0:03:01]} 5. Nf3 {[%clk 0:03:00]}  O-O {[%clk 0:03:01]} 6. Be2 {[%clk 0:03:01]}  e5 {[%clk 0:03:01]} 7. O-O {[%clk 0:03:01]}  Nbd7 {[%clk 0:03:01]} 8. Be3 {[%clk 0:02:56]}  Qe7 {[%clk 0:03:01]} 9. d5 {[%clk 0:02:42]}  Ng4 {[%clk 0:03:01]} 10. Bg5 {[%clk 0:02:42]}  f6 {[%clk 0:03:01]} 11. Bd2 {[%clk 0:02:41]}  f5 {[%clk 0:02:58]} 12. Ng5 {[%clk 0:02:32]}  Ndf6 {[%clk 0:02:58]} 13. f3 {[%clk 0:02:09]}  Nh6 {[%clk 0:02:57]} 14. Kh1 {[%clk 0:01:54]}  f4 {[%clk 0:02:38]} 15. Qb3 {[%clk 0:01:48]}  Kh8 {[%clk 0:02:33]} 16. a4 {[%clk 0:01:41]}  Nh5 {[%clk 0:02:33]} 17. Ne6 {[%clk 0:01:41]}  Bxe6 {[%clk 0:02:33]} 18. dxe6 {[%clk 0:01:42]}  Ng3+ {[%clk 0:02:32]} 19. Kg1 {[%clk 0:01:36]}  Nxf1 {[%clk 0:02:32]} 20. Bxf1 {[%clk 0:01:35]}  Qxe6 {[%clk 0:02:29]} 21. Qxb7 {[%clk 0:01:32]}  Rab8 {[%clk 0:02:29]} 22. Qxc7 {[%clk 0:01:28]}  Rxb2 {[%clk 0:02:28]} 23. Be1 {[%clk 0:01:27]}  Rfb8 {[%clk 0:02:04]} 24. Nb5 {[%clk 0:01:24]}  Rc8 {[%clk 0:01:49]} 25. Qxa7 {[%clk 0:01:21]}  Bf8 {[%clk 0:01:44]} 26. Rd1 {[%clk 0:01:11]}  Nf7 {[%clk 0:01:39]} 27. Nc3 {[%clk 0:01:02]}  Rxc4 {[%clk 0:01:29]} 28. Bxc4 {[%clk 0:00:55]}  Qxc4 {[%clk 0:01:30]} 29. Qa8 {[%clk 0:00:52]}  Qc5+ {[%clk 0:01:17]} 30. Kh1 {[%clk 0:00:48]}  Kg7 {[%clk 0:01:16]} 31. Qd5 {[%clk 0:00:44]}  Qb4 {[%clk 0:01:13]} 32. a5 {[%clk 0:00:31]}  Qa3 {[%clk 0:01:13]} 33. h3 {[%clk 0:00:19]}  Be7 {[%clk 0:01:12]} 34. Rb1 {[%clk 0:00:18]}  Rc2 {[%clk 0:01:05]} 35. Qd3 {[%clk 0:00:14]}  Rc1 {[%clk 0:00:56]} 36. Rxc1 {[%clk 0:00:13]}  Qxc1 {[%clk 0:00:56]} 37. Qb1 {[%clk 0:00:12]}  Qa3 {[%clk 0:00:53]} 38. Nd5 {[%clk 0:00:12]}  Bd8 {[%clk 0:00:53]} 39. Bb4 {[%clk 0:00:11]}  Qa4 {[%clk 0:00:51]} 40. Qe1 {[%clk 0:00:10]}  Ng5 {[%clk 0:00:40]} 41. Bxd6 {[%clk 0:00:09]}  Bxa5 {[%clk 0:00:35]} 42. Bxe5+ {[%clk 0:00:09]}  Kg8 {[%clk 0:00:33]} 43. Qb1 {[%clk 0:00:09]} 1-0


[Site "https://www.chess.com"]

[Event "Titled Tuesday Blitz May 10 Early 2022"]
[White "Dardha, Daniel"]
[Black "Jumabayev, Rinat"]
[WhiteFideId "240990"]
[BlackFideId "13702661"]
[WhiteElo "2482"]
[BlackElo "2561"]
[Result "1/2-1/2"]
[Round "08"]
[TimeControl "180+1"]
[Date "2022.05.10"]
[WhiteClock "0:00:01"]
[BlackClock "0:00:05"]

1. d4 {[%clk 0:03:00]}  Nf6 {[%clk 0:02:59]} 2. Bg5 {[%clk 0:03:00]}  d5 {[%clk 0:02:54]} 3. Nd2 {[%clk 0:02:59]}  c5 {[%clk 0:02:52]} 4. dxc5 {[%clk 0:02:58]}  e6 {[%clk 0:02:51]} 5. e4 {[%clk 0:02:57]}  Bxc5 {[%clk 0:02:42]} 6. Ngf3 {[%clk 0:02:48]}  Qb6 {[%clk 0:02:35]} 7. Qe2 {[%clk 0:02:47]}  Nxe4 {[%clk 0:02:23]} 8. Nxe4 {[%clk 0:02:39]}  dxe4 {[%clk 0:02:20]} 9. Qxe4 {[%clk 0:02:30]}  Qxb2 {[%clk 0:01:54]} 10. Rd1 {[%clk 0:02:14]}  Qb4+ {[%clk 0:01:51]} 11. Nd2 {[%clk 0:02:10]}  Nc6 {[%clk 0:01:37]} 12. Bc4 {[%clk 0:02:00]}  h6 {[%clk 0:01:06]} 13. Bf4 {[%clk 0:01:53]}  O-O {[%clk 0:00:46]} 14. O-O {[%clk 0:01:42]}  Rd8 {[%clk 0:00:44]} 15. a3 {[%clk 0:01:15]}  Qc3 {[%clk 0:00:41]} 16. Bd3 {[%clk 0:01:08]}  Rxd3 {[%clk 0:00:21]} 17. cxd3 {[%clk 0:01:01]}  Qxa3 {[%clk 0:00:21]} 18. Nc4 {[%clk 0:01:00]}  Qc3 {[%clk 0:00:20]} 19. Rc1 {[%clk 0:00:57]}  Qd4 {[%clk 0:00:21]} 20. Be3 {[%clk 0:00:49]}  Qxe4 {[%clk 0:00:20]} 21. dxe4 {[%clk 0:00:49]}  Bxe3 {[%clk 0:00:20]} 22. fxe3 {[%clk 0:00:50]}  Bd7 {[%clk 0:00:17]} 23. Nd6 {[%clk 0:00:49]}  Ne5 {[%clk 0:00:15]} 24. Rc7 {[%clk 0:00:49]}  a5 {[%clk 0:00:12]} 25. Nxf7 {[%clk 0:00:46]}  Nxf7 {[%clk 0:00:12]} 26. Rxd7 {[%clk 0:00:47]}  Ne5 {[%clk 0:00:11]} 27. Rxb7 {[%clk 0:00:47]}  a4 {[%clk 0:00:12]} 28. Ra1 {[%clk 0:00:43]}  a3 {[%clk 0:00:12]} 29. Rb3 {[%clk 0:00:43]}  Nc4 {[%clk 0:00:12]} 30. Rc3 {[%clk 0:00:41]}  Ra4 {[%clk 0:00:12]} 31. Kf2 {[%clk 0:00:39]}  Kf7 {[%clk 0:00:12]} 32. Ke2 {[%clk 0:00:38]}  Kf6 {[%clk 0:00:12]} 33. Kd3 {[%clk 0:00:38]}  Ne5+ {[%clk 0:00:11]} 34. Kc2 {[%clk 0:00:39]}  Rxe4 {[%clk 0:00:11]} 35. Rf1+ {[%clk 0:00:36]}  Kg5 {[%clk 0:00:10]} 36. Rf4 {[%clk 0:00:19]}  a2 {[%clk 0:00:09]} 37. Kb2 {[%clk 0:00:05]}  Rxe3 {[%clk 0:00:06]} 38. Rxe3 {[%clk 0:00:05]}  Kxf4 {[%clk 0:00:07]} 39. Rb3 {[%clk 0:00:04]}  Nc4+ {[%clk 0:00:05]} 40. Kxa2 {[%clk 0:00:05]}  Ne3 {[%clk 0:00:06]} 41. g3+ {[%clk 0:00:04]}  Ke4 {[%clk 0:00:06]} 42. Kb1 {[%clk 0:00:04]}  Nf1 {[%clk 0:00:07]} 43. Rb7 {[%clk 0:00:02]}  g5 {[%clk 0:00:06]} 44. Rh7 {[%clk 0:00:03]}  Nxh2 {[%clk 0:00:05]} 45. Rxh6 {[%clk 0:00:03]}  Ng4 {[%clk 0:00:05]} 46. Rxe6+ {[%clk 0:00:03]}  Kf3 {[%clk 0:00:06]} 47. Rg6 {[%clk 0:00:04]}  Kxg3 {[%clk 0:00:05]} 48. Rxg5 {[%clk 0:00:05]}  Kf4 {[%clk 0:00:06]} 49. Rg8 {[%clk 0:00:05]}  Kf5 {[%clk 0:00:07]} 50. Kc2 {[%clk 0:00:05]}  Nf6 {[%clk 0:00:07]} 51. Rf8 {[%clk 0:00:05]}  Ke5 {[%clk 0:00:08]} 52. Kd3 {[%clk 0:00:06]}  Nd5 {[%clk 0:00:08]} 53. Re8+ {[%clk 0:00:06]}  Kf5 {[%clk 0:00:08]} 54. Kd4 {[%clk 0:00:07]}  Nf4 {[%clk 0:00:08]} 55. Rf8+ {[%clk 0:00:06]}  Kg4 {[%clk 0:00:08]} 56. Ke4 {[%clk 0:00:07]}  Ng6 {[%clk 0:00:07]} 57. Rf5 {[%clk 0:00:07]}  Nh4 {[%clk 0:00:06]} 58. Rb5 {[%clk 0:00:04]}  Nf3 {[%clk 0:00:05]} 59. Ke3 {[%clk 0:00:03]}  Ng5 {[%clk 0:00:05]} 60. Ra5 {[%clk 0:00:03]}  Nf7 {[%clk 0:00:03]} 61. Ra7 {[%clk 0:00:02]}  Ng5 {[%clk 0:00:04]} 62. Kd4 {[%clk 0:00:01]}  Kf5 {[%clk 0:00:04]} 63. Kd5 {[%clk 0:00:01]}  Kf4 {[%clk 0:00:04]} 64. Rg7 {[%clk 0:00:02]}  Nf3 {[%clk 0:00:03]} 65. Rf7+ {[%clk 0:00:02]}  Ke3 {[%clk 0:00:04]} 66. Rf8 {[%clk 0:00:02]}  Nd2 {[%clk 0:00:04]} 67. Re8+ {[%clk 0:00:02]}  Kd3 {[%clk 0:00:04]} 68. Rh8 {[%clk 0:00:03]}  Ke3 {[%clk 0:00:05]} 69. Rh3+ {[%clk 0:00:03]}  Nf3 {[%clk 0:00:05]} 70. Rg3 {[%clk 0:00:04]}  Kf4 {[%clk 0:00:06]} 71. Rg8 {[%clk 0:00:05]}  Ke3 {[%clk 0:00:06]} 72. Rf8 {[%clk 0:00:05]}  Nd2 {[%clk 0:00:06]} 73. Re8+ {[%clk 0:00:05]}  Kd3 {[%clk 0:00:06]} 74. Ke5 {[%clk 0:00:05]}  Nc4+ {[%clk 0:00:06]} 75. Kf4 {[%clk 0:00:05]}  Kc3 {[%clk 0:00:05]} 76. Rd8 {[%clk 0:00:05]}  Nd2 {[%clk 0:00:05]} 77. Kf5 {[%clk 0:00:05]}  Nc4 {[%clk 0:00:05]} 78. Ke4 {[%clk 0:00:05]}  Nd2+ {[%clk 0:00:05]} 79. Ke3 {[%clk 0:00:06]}  Nc4+ {[%clk 0:00:06]} 80. Ke2 {[%clk 0:00:06]}  Ne5 {[%clk 0:00:06]} 81. Rd6 {[%clk 0:00:06]}  Nc4 {[%clk 0:00:06]} 82. Rd3+ {[%clk 0:00:07]}  Kb4 {[%clk 0:00:07]} 83. Rg3 {[%clk 0:00:07]}  Kc5 {[%clk 0:00:07]} 84. Rg4 {[%clk 0:00:06]}  Kd5 {[%clk 0:00:06]} 85. Rh4 {[%clk 0:00:06]}  Ne5 {[%clk 0:00:05]} 86. Ke3 {[%clk 0:00:06]}  Nc4+ {[%clk 0:00:06]} 87. Kf4 {[%clk 0:00:06]}  Kd4 {[%clk 0:00:06]} 88. Rg4 {[%clk 0:00:06]}  Kd3 {[%clk 0:00:05]} 89. Rg8 {[%clk 0:00:05]}  Kd4 {[%clk 0:00:04]} 90. Rc8 {[%clk 0:00:04]}  Kd5 {[%clk 0:00:04]} 91. Rd8+ {[%clk 0:00:04]}  Kc5 {[%clk 0:00:04]} 92. Ke4 {[%clk 0:00:03]}  Nd6+ {[%clk 0:00:04]} 93. Ke5 {[%clk 0:00:03]}  Nf7+ {[%clk 0:00:05]} 94. Ke6 {[%clk 0:00:01]}  Nxd8+ {[%clk 0:00:05]} 1/2-1/2


[Site "https://www.chess.com"]

[Event "Titled Tuesday Blitz May 10 Early 2022"]
[White "Demchenko, Anton"]
[Black "Maksimenko, Viktor"]
[WhiteFideId "4160258"]
[BlackFideId "13710478"]
[WhiteElo "2539"]
[BlackElo "2269"]
[Result "1/2-1/2"]
[Round "08"]
[TimeControl "180+1"]
[Date "2022.05.11"]
[WhiteClock "0:00:05"]
[BlackClock "0:00:05"]

1. e4 {[%clk 0:03:00]}  c6 {[%clk 0:03:00]} 2. d4 {[%clk 0:03:00]}  d5 {[%clk 0:03:00]} 3. e5 {[%clk 0:03:01]}  Bf5 {[%clk 0:03:00]} 4. Bd3 {[%clk 0:03:02]}  Bxd3 {[%clk 0:02:57]} 5. Qxd3 {[%clk 0:03:02]}  e6 {[%clk 0:02:58]} 6. c3 {[%clk 0:03:03]}  Qb6 {[%clk 0:02:39]} 7. Ne2 {[%clk 0:03:04]}  c5 {[%clk 0:02:36]} 8. O-O {[%clk 0:03:04]}  Nc6 {[%clk 0:02:37]} 9. a3 {[%clk 0:03:04]}  c4 {[%clk 0:02:21]} 10. Qc2 {[%clk 0:03:04]}  Nge7 {[%clk 0:02:13]} 11. Nd2 {[%clk 0:02:59]}  Na5 {[%clk 0:02:00]} 12. Rb1 {[%clk 0:02:58]}  O-O-O {[%clk 0:01:53]} 13. b3 {[%clk 0:02:57]}  cxb3 {[%clk 0:01:52]} 14. Nxb3 {[%clk 0:02:58]}  Nxb3 {[%clk 0:01:47]} 15. Rxb3 {[%clk 0:02:59]}  Qc7 {[%clk 0:01:45]} 16. a4 {[%clk 0:02:34]}  Nc6 {[%clk 0:01:43]} 17. Ba3 {[%clk 0:02:34]}  Na5 {[%clk 0:01:12]} 18. Bxf8 {[%clk 0:02:34]}  Rhxf8 {[%clk 0:01:13]} 19. Rb5 {[%clk 0:02:33]}  b6 {[%clk 0:01:01]} 20. Qxh7 {[%clk 0:02:22]}  g6 {[%clk 0:00:55]} 21. Rb4 {[%clk 0:02:04]}  Nc6 {[%clk 0:00:41]} 22. Rbb1 {[%clk 0:02:01]}  Rh8 {[%clk 0:00:38]} 23. Qg7 {[%clk 0:02:01]}  Qe7 {[%clk 0:00:38]} 24. Qf6 {[%clk 0:01:47]}  Qxf6 {[%clk 0:00:38]} 25. exf6 {[%clk 0:01:48]}  Rh5 {[%clk 0:00:39]} 26. f4 {[%clk 0:01:11]}  Kd7 {[%clk 0:00:21]} 27. Nc1 {[%clk 0:01:03]}  Rc8 {[%clk 0:00:18]} 28. Nd3 {[%clk 0:01:02]}  Na5 {[%clk 0:00:18]} 29. Ne5+ {[%clk 0:01:02]}  Ke8 {[%clk 0:00:19]} 30. Rf3 {[%clk 0:00:59]}  Nc4 {[%clk 0:00:16]} 31. Nxc4 {[%clk 0:00:27]}  Rxc4 {[%clk 0:00:17]} 32. a5 {[%clk 0:00:27]}  Rc6 {[%clk 0:00:14]} 33. g4 {[%clk 0:00:20]}  Rh4 {[%clk 0:00:12]} 34. h3 {[%clk 0:00:20]}  Kd7 {[%clk 0:00:12]} 35. axb6 {[%clk 0:00:18]}  Rxb6 {[%clk 0:00:09]} 36. Rxb6 {[%clk 0:00:18]}  axb6 {[%clk 0:00:10]} 37. Kg2 {[%clk 0:00:18]}  Rh8 {[%clk 0:00:10]} 38. Kg3 {[%clk 0:00:16]}  Kc6 {[%clk 0:00:07]} 39. h4 {[%clk 0:00:13]}  Kb5 {[%clk 0:00:07]} 40. f5 {[%clk 0:00:09]}  gxf5 {[%clk 0:00:07]} 41. gxf5 {[%clk 0:00:09]}  exf5 {[%clk 0:00:07]} 42. Rxf5 {[%clk 0:00:09]}  Kc4 {[%clk 0:00:08]} 43. Rf3 {[%clk 0:00:10]}  b5 {[%clk 0:00:08]} 44. Kg4 {[%clk 0:00:10]}  Rg8+ {[%clk 0:00:08]} 45. Kh3 {[%clk 0:00:08]}  Rh8 {[%clk 0:00:08]} 46. Re3 {[%clk 0:00:04]}  Rh6 {[%clk 0:00:07]} 47. Kg4 {[%clk 0:00:02]}  Rxf6 {[%clk 0:00:06]} 48. h5 {[%clk 0:00:03]}  b4 {[%clk 0:00:05]} 49. cxb4 {[%clk 0:00:04]}  Kxd4 {[%clk 0:00:05]} 50. Rf3 {[%clk 0:00:03]}  Rb6 {[%clk 0:00:02]} 51. Rxf7 {[%clk 0:00:03]}  Rxb4 {[%clk 0:00:03]} 52. Rf4+ {[%clk 0:00:03]}  Kc3 {[%clk 0:00:02]} 53. Rxb4 {[%clk 0:00:04]}  Kxb4 {[%clk 0:00:03]} 54. h6 {[%clk 0:00:05]}  d4 {[%clk 0:00:04]} 55. h7 {[%clk 0:00:05]}  d3 {[%clk 0:00:05]} 56. h8=Q {[%clk 0:00:06]}  d2 {[%clk 0:00:06]} 57. Qh2 {[%clk 0:00:06]}  d1=Q+ {[%clk 0:00:05]} 58. Kg3 {[%clk 0:00:05]}  Qd6+ {[%clk 0:00:04]} 59. Kh3 {[%clk 0:00:06]}  Qxh2+ {[%clk 0:00:05]} 60. Kxh2 {[%clk 0:00:05]} 1/2-1/2


[Site "https://www.chess.com"]

[Event "Titled Tuesday Blitz May 10 Early 2022"]
[White "Derraugh, Geordie"]
[Black "Mikhnenko, Alexander"]
[WhiteFideId "2603950"]
[BlackFideId "34143014"]
[WhiteElo "2116"]
[BlackElo "2117"]
[Result "1/2-1/2"]
[Round "08"]
[TimeControl "180+1"]
[Date "2022.05.11"]
[WhiteClock "0:00:10"]
[BlackClock "0:00:12"]

1. e4 {[%clk 0:03:00]}  c5 {[%clk 0:02:59]} 2. c3 {[%clk 0:03:00]}  e6 {[%clk 0:02:59]} 3. d4 {[%clk 0:03:00]}  d5 {[%clk 0:02:59]} 4. exd5 {[%clk 0:02:59]}  exd5 {[%clk 0:03:00]} 5. Nf3 {[%clk 0:02:59]}  Nc6 {[%clk 0:03:00]} 6. Bb5 {[%clk 0:02:59]}  Nf6 {[%clk 0:02:59]} 7. O-O {[%clk 0:02:58]}  Be7 {[%clk 0:02:59]} 8. dxc5 {[%clk 0:02:58]}  Bxc5 {[%clk 0:03:00]} 9. Bg5 {[%clk 0:02:58]}  O-O {[%clk 0:03:00]} 10. Nbd2 {[%clk 0:02:57]}  Bg4 {[%clk 0:02:59]} 11. h3 {[%clk 0:02:47]}  Bh5 {[%clk 0:02:57]} 12. Qa4 {[%clk 0:02:44]}  Qd6 {[%clk 0:02:49]} 13. Bf4 {[%clk 0:02:35]}  Qe6 {[%clk 0:02:35]} 14. Rfe1 {[%clk 0:02:34]}  Qf5 {[%clk 0:02:32]} 15. Bxc6 {[%clk 0:02:25]}  bxc6 {[%clk 0:02:26]} 16. Re5 {[%clk 0:02:26]}  Qg6 {[%clk 0:02:06]} 17. Qxc6 {[%clk 0:01:33]}  Bxf2+ {[%clk 0:02:01]} 18. Kh1 {[%clk 0:01:22]}  Ne4 {[%clk 0:01:52]} 19. Qxd5 {[%clk 0:01:10]}  Bxf3 {[%clk 0:01:42]} 20. Nxf3 {[%clk 0:01:06]}  Nf6 {[%clk 0:01:32]} 21. Qd2 {[%clk 0:00:58]}  Bb6 {[%clk 0:01:28]} 22. Rg5 {[%clk 0:00:52]}  Ne4 {[%clk 0:01:18]} 23. Rxg6 {[%clk 0:00:52]}  Nxd2 {[%clk 0:01:13]} 24. Rxb6 {[%clk 0:00:40]}  axb6 {[%clk 0:01:03]} 25. Nxd2 {[%clk 0:00:38]}  Rfe8 {[%clk 0:01:02]} 26. Nc4 {[%clk 0:00:33]}  b5 {[%clk 0:00:59]} 27. Nd6 {[%clk 0:00:32]}  Re2 {[%clk 0:00:54]} 28. Nxb5 {[%clk 0:00:21]}  Rxb2 {[%clk 0:00:53]} 29. Nd4 {[%clk 0:00:21]}  Raxa2 {[%clk 0:00:50]} 30. Rg1 {[%clk 0:00:20]}  f6 {[%clk 0:00:43]} 31. Bd6 {[%clk 0:00:15]}  Rd2 {[%clk 0:00:39]} 32. Bb4 {[%clk 0:00:14]}  Rab2 {[%clk 0:00:31]} 33. Nf3 {[%clk 0:00:15]}  Rdc2 {[%clk 0:00:30]} 34. Kh2 {[%clk 0:00:13]}  Kf7 {[%clk 0:00:28]} 35. Kg3 {[%clk 0:00:14]}  h5 {[%clk 0:00:26]} 36. h4 {[%clk 0:00:14]}  g6 {[%clk 0:00:26]} 37. Kh3 {[%clk 0:00:14]}  Rf2 {[%clk 0:00:18]} 38. Kg3 {[%clk 0:00:11]}  Rfc2 {[%clk 0:00:16]} 39. Ba5 {[%clk 0:00:10]}  Ra2 {[%clk 0:00:13]} 40. Bb4 {[%clk 0:00:10]}  Rab2 {[%clk 0:00:12]} 1/2-1/2


[Site "https://www.chess.com"]